fUSD/lending_fUSD_20250215
["ID","MTS","AMOUNT","RATE_DAILY","PERIOD"]
[353193561,1739640644667,-500.0,0.00011368,2]
[353193563,1739640644676,-500.0,0.00011368,2]
[353193565,1739640644686,-500.0,0.00011368,2]
[353193567,1739640644695,-500.0,0.00011368,2]
[353193569,1739640644705,-500.0,0.00011368,2]
[353193571,1739640644714,-500.0,0.00011368,2]
[353193573,1739640644723,-500.0,0.00011368,2]
[353193575,1739640644735,-500.0,0.00011368,2]
[353193577,1739640644744,-702.58,0.00011368,2]
[353193579,1739640644753,-1073.26,0.00011368,2]
[353193581,1739640644762,-500.0,0.00011368,2]
[353193583,1739640644772,-749.99,0.00011368,2]
[353193585,1739640644781,-500.0,0.00011368,2]
[353193587,1739640644791,-500.0,0.00011368,2]
[353193589,1739640644800,-180.896505,0.00011368,2]
[353193591,1739640644809,-500.0,0.00011368,2]
[353193593,1739640644818,-500.0,0.00011368,2]
[353193595,1739640644828,-500.0,0.00011368,2]
[353193597,1739640644837,-500.0,0.00011368,2]
[353193599,1739640644847,-557.75,0.00011368,2]
[353193601,1739640644857,-826.89,0.00011368,2]
[353193603,1739640644867,-364.085208,0.00011368,2]
[353193605,1739640644877,-500.0,0.00011368,2]
[353193607,1739640644886,-551.39,0.00011368,2]
[353193609,1739640644896,-758.76,0.00011368,2]
[353193611,1739640644905,-574.22,0.00011368,2]
[353193613,1739640644915,-500.0,0.00011368,2]
[353193615,1739640644925,-500.0,0.00011368,2]
[353193617,1739640644934,-664.12,0.00011368,2]
[353193619,1739640644944,-647.76,0.00011368,2]
[353193621,1739640644954,-500.0,0.00011368,2]
[353193623,1739640644963,-679.9,0.00011368,2]
[353193625,1739640644973,-500.0,0.00011368,2]
[353193627,1739640644984,-500.0,0.00011368,2]
[353193629,1739640644993,-500.0,0.00011368,2]
[353193631,1739640645003,-1774.1,0.00011368,2]
[353193633,1739640645012,-500.0,0.00011368,2]
[353193635,1739640645023,-500.0,0.00011368,2]
[353193637,1739640645032,-567.85,0.00011368,2]
[353193639,1739640645041,-500.0,0.00011368,2]
[353193641,1739640645051,-536.13,0.00011368,2]
[353193643,1739640645061,-500.0,0.00011368,2]
[353193645,1739640645070,-810.11,0.00011368,2]
[353193647,1739640645080,-500.0,0.00011368,2]
[353193649,1739640645090,-1032.21,0.00011368,2]
[353193651,1739640645100,-500.0,0.00011368,2]
[353193653,1739640645109,-1501.05,0.00011368,2]
[353193655,1739640645118,-500.0,0.00011368,2]
[353193657,1739640645127,-644.12,0.00011368,2]
[353193659,1739640645137,-500.0,0.00011368,2]
[353193661,1739640645150,-500.0,0.00011368,2]
[353193663,1739640645159,-500.0,0.00011368,2]
[353193665,1739640645169,-701.46,0.00011368,2]
[353193667,1739640645178,-917.15,0.00011368,2]
[353193668,1739640645189,-500.0,0.00011368,2]
[353193670,1739640645198,-360.08700287,0.00011368,2]
[353193672,1739640645207,-500.0,0.00011368,2]
[353193674,1739640645216,-506.75,0.00011368,2]
[353193676,1739640645225,-845.55,0.00011368,2]
[353193679,1739640645236,-500.0,0.00011368,2]
[353193680,1739640645245,-500.0,0.00011368,2]
[353193682,1739640645255,-893.05,0.00011368,2]
[353193684,1739640645264,-500.0,0.00011368,2]
[353193686,1739640645274,-500.0,0.00011368,2]
[353193688,1739640645283,-500.0,0.00011368,2]
[353193690,1739640645293,-1077.49,0.00011368,2]
[353193692,1739640645302,-500.0,0.00011368,2]
[353193694,1739640645312,-625.32,0.00011368,2]
[353193696,1739640645322,-500.0,0.00011368,2]
[353193698,1739640645331,-500.0,0.00011368,2]
[353193700,1739640645341,-500.0,0.00011368,2]
[353193702,1739640645351,-500.0,0.00011368,2]
[353193704,1739640645360,-500.0,0.00011368,2]
[353193706,1739640645371,-833.02,0.00011368,2]
[353193708,1739640645380,-629.24,0.00011368,2]
[353193710,1739640645389,-1985.97,0.00011368,2]
[353193712,1739640645399,-500.0,0.00011368,2]
[353193714,1739640645408,-500.0,0.00011369,2]
[353193716,1739640645417,-500.0,0.00011369,2]
[353193718,1739640645426,-500.0,0.00011369,2]
[353193720,1739640645436,-500.0,0.00011369,2]
[353193722,1739640645446,-522.68264922,0.00011369,2]
[353193724,1739640645455,-370.16,0.00011369,2]
[353193726,1739640645465,-500.0,0.00011369,2]
[353193728,1739640645475,-500.0,0.00011369,2]
[353193730,1739640645485,-500.0,0.00011369,2]
[353193732,1739640645495,-500.0,0.00011369,2]
[353193734,1739640645504,-500.0,0.00011369,2]
[353193736,1739640645513,-500.0,0.00011369,2]
[353193738,1739640645523,-738.52,0.00011369,2]
[353193740,1739640645532,-500.0,0.00011369,2]
[353193742,1739640645541,-500.0,0.00011369,2]
[353193744,1739640645551,-500.0,0.00011369,2]
[353193746,1739640645560,-500.0,0.00011369,2]
[353193748,1739640645570,-500.0,0.00011369,2]
[353193750,1739640645579,-500.0,0.00011369,2]
[353193752,1739640645589,-500.0,0.00011369,2]
[353193754,1739640645599,-439.94,0.0001137,2]
[353193756,1739640645609,-775.49,0.0001137,2]
[353193758,1739640645619,-571.48,0.00011381,2]
[353193759,1739640645628,-512.53,0.00011381,2]
[353193761,1739640645638,-500.0,0.00011381,2]
[353193763,1739640645647,-500.0,0.00011381,2]
[353193765,1739640645657,-844.08,0.00011381,2]
[353193767,1739640645666,-678.77,0.00011381,2]
[353193769,1739640645675,-578.69,0.00011381,2]
[353193771,1739640645684,-836.8,0.00011381,2]
[353193773,1739640645694,-502.58,0.00011381,2]
[353193775,1739640645704,-500.0,0.00011381,2]
[353193777,1739640645713,-500.0,0.00011381,2]
[353193779,1739640645722,-830.02,0.00011381,2]
[353193781,1739640645733,-932.26,0.00011381,2]
[353193783,1739640645743,-651.91,0.00011381,2]
[353193785,1739640645752,-521.69,0.00011381,2]
[353193787,1739640645762,-500.0,0.00011381,2]
[353193789,1739640645772,-2314.63,0.00011381,2]
[353193791,1739640645781,-500.0,0.00011381,2]
[353193793,1739640645791,-500.0,0.00011381,2]
[353193795,1739640645801,-500.0,0.00011381,2]
[353193797,1739640645811,-500.0,0.00011381,2]
[353193799,1739640645820,-1694.07,0.00011381,2]
[353193801,1739640645830,-500.0,0.00011381,2]
[353193803,1739640645839,-805.43,0.00011381,2]
[353193805,1739640645848,-553.77,0.00011381,2]
[353193806,1739640645859,-10120.75331287,0.00011396,2]
[353193808,1739640645868,-1009.12802594,0.00011434,2]
[353193811,1739640645878,-661.5,0.0001145,2]
[353193813,1739640645888,-500.0,0.0001145,2]
[353193815,1739640645898,-522.73,0.0001145,2]
[353193817,1739640645908,-500.0,0.0001145,2]
[353193818,1739640645917,-500.0,0.0001145,2]
[353193820,1739640645926,-500.0,0.0001145,2]
[353193822,1739640645935,-500.0,0.0001145,2]
[353193824,1739640645944,-500.0,0.0001145,2]
[353193826,1739640645954,-500.0,0.0001145,2]
[353193828,1739640645964,-500.0,0.0001145,2]
[353193829,1739640645973,-500.0,0.0001145,2]
[353193830,1739640645982,-648.93220464,0.0001145,2]
[353193831,1739640645992,-500.0,0.0001145,2]
[353193832,1739640646001,-500.0,0.0001145,2]
[353193833,1739640646010,-500.0,0.0001145,2]
[353193834,1739640646019,-500.0,0.0001145,2]
[353193835,1739640646028,-500.0,0.0001145,2]
[353193836,1739640646038,-500.0,0.0001145,2]
[353193837,1739640646047,-500.0,0.0001145,2]
[353193838,1739640646056,-500.0,0.0001145,2]
[353193839,1739640646066,-500.0,0.0001145,2]
[353193859,1739640646250,-500.0,0.0001145,2]
[353193861,1739640646260,-500.0,0.0001145,2]
[353193863,1739640646270,-702.58,0.0001145,2]
[353193865,1739640646280,-1073.26,0.0001145,2]
[353193867,1739640646289,-500.0,0.0001145,2]
[353193869,1739640646299,-749.99,0.0001145,2]
[353193871,1739640646309,-500.0,0.0001145,2]
[353193873,1739640646318,-500.0,0.0001145,2]
[353193875,1739640646329,-180.896505,0.0001145,2]
[353193877,1739640646339,-500.0,0.0001145,2]
[353193879,1739640646348,-500.0,0.0001145,2]
[353193881,1739640646358,-500.0,0.0001145,2]
[353193883,1739640646368,-500.0,0.0001145,2]
[353193885,1739640646378,-557.75,0.0001145,2]
[353193887,1739640646387,-826.89,0.0001145,2]
[353193890,1739640646397,-364.085208,0.0001145,2]
[353193892,1739640646407,-500.0,0.0001145,2]
[353193894,1739640646417,-551.39,0.0001145,2]
[353193896,1739640646427,-758.76,0.0001145,2]
[353193898,1739640646437,-574.22,0.0001145,2]
[353193900,1739640646446,-500.0,0.0001145,2]
[353193902,1739640646456,-500.0,0.0001145,2]
[353193903,1739640646466,-664.12,0.0001145,2]
[353193904,1739640646475,-647.76,0.0001145,2]
[353193905,1739640646485,-500.0,0.0001145,2]
[353193906,1739640646495,-679.9,0.0001145,2]
[353193907,1739640646504,-500.0,0.0001145,2]
[353193908,1739640646514,-500.0,0.0001145,2]
[353193909,1739640646523,-500.0,0.0001145,2]
[353193910,1739640646533,-1774.1,0.0001145,2]
[353193911,1739640646543,-500.0,0.0001145,2]
[353193912,1739640646552,-500.0,0.0001145,2]
[353193913,1739640646562,-567.85,0.0001145,2]
[353193914,1739640646572,-500.0,0.0001145,2]
[353193915,1739640646582,-536.13,0.0001145,2]
[353193916,1739640646592,-500.0,0.0001145,2]
[353193917,1739640646601,-810.11,0.0001145,2]
[353193918,1739640646611,-500.0,0.0001145,2]
[353193919,1739640646622,-1032.21,0.0001145,2]
[353193920,1739640646631,-500.0,0.0001145,2]
[353193921,1739640646640,-1501.05,0.0001145,2]
[353193922,1739640646651,-500.0,0.0001145,2]
[353193923,1739640646660,-644.12,0.0001145,2]
[353193924,1739640646670,-500.0,0.0001145,2]
[353193925,1739640646680,-333.1457168,0.0001145,2]
[353193926,1739640646689,-500.0,0.0001145,2]
[353193927,1739640646699,-701.46,0.0001145,2]
[353193928,1739640646709,-917.15,0.0001145,2]
[353193929,1739640646719,-500.0,0.0001145,2]
[353193930,1739640646730,-500.0,0.0001145,2]
[353193931,1739640646740,-506.75,0.0001145,2]
[353193932,1739640646749,-845.55,0.0001145,2]
[353193933,1739640646759,-500.0,0.0001145,2]
[353193934,1739640646769,-500.0,0.0001145,2]
[353193935,1739640646778,-893.05,0.0001145,2]
[353193936,1739640646788,-500.0,0.0001145,2]
[353193937,1739640646798,-500.0,0.0001145,2]
[353193938,1739640646808,-500.0,0.0001145,2]
[353193939,1739640646819,-1077.49,0.0001145,2]
[353193940,1739640646828,-500.0,0.0001145,2]
[353193941,1739640646838,-625.32,0.0001145,2]
[353193942,1739640646848,-500.0,0.0001145,2]
[353193943,1739640646858,-500.0,0.0001145,2]
[353193944,1739640646879,-500.0,0.0001145,2]
[353193945,1739640646889,-500.0,0.0001145,2]
[353193946,1739640646899,-500.0,0.0001145,2]
[353193947,1739640646910,-833.02,0.0001145,2]
[353193948,1739640646922,-629.24,0.0001145,2]
[353193949,1739640646932,-1985.97,0.0001145,2]
[353193950,1739640646943,-500.0,0.0001145,2]
[353193951,1739640646954,-643.39,0.00011451,2]
[353193952,1739640646965,-500.0,0.00011451,2]
[353193953,1739640646976,-500.0,0.00011451,2]
[353193954,1739640646988,-500.0,0.00011451,2]
[353193955,1739640646999,-500.0,0.00011451,2]
[353193956,1739640647010,-500.0,0.00011451,2]
[353193957,1739640647021,-500.0,0.00011451,2]
[353193958,1739640647032,-738.52,0.00011451,2]
[353193959,1739640647043,-500.0,0.00011451,2]
[353193960,1739640647053,-500.0,0.00011451,2]
[353193961,1739640647064,-500.0,0.00011451,2]
[353193962,1739640647075,-500.0,0.00011451,2]
[353193963,1739640647085,-500.0,0.00011451,2]
[353193964,1739640647096,-500.0,0.00011452,2]
[353193965,1739640647107,-500.0,0.00011452,2]
[353193966,1739640647118,-500.0,0.00011452,2]
[353193967,1739640647129,-500.0,0.00011452,2]
[353193968,1739640647144,-500.0,0.00011452,2]
[353193969,1739640647155,-500.0,0.00011462,2]
[353193970,1739640647165,-2000.0,0.00011462,2]
[353193971,1739640647176,-200.0,0.00011462,2]
[353193972,1739640647187,-571.48,0.00011464,2]
[353193973,1739640647197,-512.53,0.00011464,2]
[353193974,1739640647207,-500.0,0.00011464,2]
[353193975,1739640647217,-500.0,0.00011464,2]
[353193976,1739640647231,-844.08,0.00011464,2]
[353193977,1739640647241,-678.77,0.00011464,2]
[353193978,1739640647251,-578.69,0.00011464,2]
[353193979,1739640647261,-836.8,0.00011464,2]
[353193980,1739640647271,-502.58,0.00011464,2]
[353193981,1739640647281,-500.0,0.00011464,2]
[353193982,1739640647290,-500.0,0.00011464,2]
[353193983,1739640647300,-830.02,0.00011464,2]
[353193984,1739640647310,-932.26,0.00011464,2]
[353193985,1739640647320,-651.91,0.00011464,2]
[353193986,1739640647330,-521.69,0.00011464,2]
[353193987,1739640647341,-500.0,0.00011464,2]
[353193988,1739640647351,-2314.63,0.00011464,2]
[353193989,1739640647361,-500.0,0.00011464,2]
[353193990,1739640647372,-500.0,0.00011464,2]
[353193991,1739640647382,-500.0,0.00011464,2]
[353193992,1739640647393,-500.0,0.00011464,2]
[353193993,1739640647403,-1694.07,0.00011464,2]
[353193994,1739640647413,-500.0,0.00011464,2]
[353193995,1739640647423,-805.43,0.00011464,2]
[353193996,1739640647433,-553.77,0.00011464,2]
[353193997,1739640647443,-150.0,0.00011466,2]
[353193998,1739640647454,-150.0,0.00011466,2]
[353193999,1739640647464,-150.0,0.00011466,2]
[353194000,1739640647473,-152.83628383,0.00011466,2]
[353194001,1739640647485,-2751.0,0.00011507,2]
[353194002,1739640647495,-661.5,0.00011532,2]
[353194003,1739640647504,-166.16173734,0.00011532,2]
[353194004,1739640647514,-522.73,0.00011532,2]
[353194005,1739640647524,-500.0,0.00011532,2]
[353194006,1739640647534,-500.0,0.00011532,2]
[353194007,1739640647544,-500.0,0.00011532,2]
[353194008,1739640647555,-500.0,0.00011532,2]
[353194009,1739640647565,-500.0,0.00011532,2]
[353194010,1739640647575,-500.0,0.00011532,2]
[353194011,1739640647584,-500.0,0.00011532,2]
[353194012,1739640647594,-500.0,0.00011532,2]
[353194013,1739640647604,-500.0,0.00011532,2]
[353194014,1739640647614,-500.0,0.00011532,2]
[353194015,1739640647623,-500.0,0.00011532,2]
[353194016,1739640647633,-500.0,0.00011532,2]
[353194017,1739640647643,-535.41,0.00011532,2]
[353194018,1739640647653,-500.0,0.00011532,2]
[353194019,1739640647663,-500.0,0.00011532,2]
[353194020,1739640647673,-500.0,0.00011532,2]
[353194021,1739640647683,-500.0,0.00011532,2]
[353194022,1739640647692,-500.0,0.00011532,2]
[353194023,1739640647703,-500.0,0.00011532,2]
[353194024,1739640647713,-1073.26,0.00011532,2]
[353194025,1739640647723,-702.58,0.00011532,2]
[353194026,1739640647735,-500.0,0.00011532,2]
[353194027,1739640647745,-749.99,0.00011532,2]
[353194028,1739640647755,-500.0,0.00011532,2]
[353194029,1739640647764,-500.0,0.00011532,2]
[353194030,1739640647774,-180.896505,0.00011532,2]
[353194031,1739640647784,-500.0,0.00011532,2]
[353194032,1739640647794,-500.0,0.00011532,2]
[353194033,1739640647804,-500.0,0.00011532,2]
[353194034,1739640647814,-500.0,0.00011532,2]
[353194035,1739640647824,-557.75,0.00011532,2]
[353194036,1739640647834,-826.89,0.00011532,2]
[353194037,1739640647844,-364.085208,0.00011532,2]
[353194038,1739640647854,-500.0,0.00011532,2]
[353194039,1739640647865,-551.39,0.00011532,2]
[353194040,1739640647875,-758.76,0.00011532,2]
[353194041,1739640647885,-574.22,0.00011532,2]
[353194042,1739640647895,-500.0,0.00011532,2]
[353194043,1739640647904,-500.0,0.00011532,2]
[353194044,1739640647915,-664.12,0.00011532,2]
[353194045,1739640647926,-647.76,0.00011532,2]
[353194046,1739640647936,-500.0,0.00011532,2]
[353194047,1739640647946,-679.9,0.00011532,2]
[353194048,1739640647956,-500.0,0.00011532,2]
[353194049,1739640647967,-500.0,0.00011532,2]
[353194050,1739640647978,-500.0,0.00011532,2]
[353194051,1739640647990,-1774.1,0.00011532,2]
[353194052,1739640648000,-500.0,0.00011532,2]
[353194053,1739640648010,-500.0,0.00011532,2]
[353194054,1739640648020,-567.85,0.00011532,2]
[353194055,1739640648030,-500.0,0.00011532,2]
[353194056,1739640648041,-536.13,0.00011532,2]
[353194057,1739640648051,-500.0,0.00011532,2]
[353194058,1739640648062,-810.11,0.00011532,2]
[353194059,1739640648073,-500.0,0.00011532,2]
[353194060,1739640648083,-1032.21,0.00011532,2]
[353194061,1739640648093,-500.0,0.00011532,2]
[353194062,1739640648104,-1501.05,0.00011532,2]
[353194063,1739640648114,-500.0,0.00011532,2]
[353194064,1739640648125,-644.12,0.00011532,2]
[353194065,1739640648136,-500.0,0.00011532,2]
[353194066,1739640648147,-500.0,0.00011532,2]
[353194067,1739640648158,-701.46,0.00011532,2]
[353194068,1739640648169,-917.15,0.00011532,2]
[353194069,1739640648179,-345.92934782,0.00011532,2]
[353194070,1739640648190,-500.0,0.00011532,2]
[353194071,1739640648200,-506.75,0.00011532,2]
[353194072,1739640648210,-845.55,0.00011532,2]
[353194073,1739640648221,-500.0,0.00011532,2]
[353194074,1739640648232,-500.0,0.00011532,2]
[353194075,1739640648243,-893.05,0.00011532,2]
[353194076,1739640648254,-500.0,0.00011532,2]
[353194077,1739640648264,-500.0,0.00011532,2]
[353194078,1739640648274,-500.0,0.00011532,2]
[353194079,1739640648284,-1077.49,0.00011532,2]
[353194080,1739640648295,-500.0,0.00011532,2]
[353194081,1739640648306,-625.32,0.00011532,2]
[353194082,1739640648316,-500.0,0.00011532,2]
[353194083,1739640648327,-500.0,0.00011532,2]
[353194084,1739640648337,-500.0,0.00011532,2]
[353194085,1739640648348,-500.0,0.00011532,2]
[353194086,1739640648359,-500.0,0.00011532,2]
[353194087,1739640648370,-833.02,0.00011532,2]
[353194088,1739640648380,-629.24,0.00011532,2]
[353194089,1739640648392,-1985.97,0.00011532,2]
[353194090,1739640648402,-500.0,0.00011532,2]
[353194091,1739640648412,-158.36,0.00011533,2]
[353194092,1739640648422,-500.0,0.00011533,2]
[353194093,1739640648433,-500.0,0.00011533,2]
[353194094,1739640648444,-500.0,0.00011533,2]
[353194095,1739640648454,-500.0,0.00011533,2]
[353194096,1739640648465,-500.0,0.00011533,2]
[353194097,1739640648475,-738.52,0.00011533,2]
[353194098,1739640648486,-500.0,0.00011533,2]
[353194099,1739640648497,-500.0,0.00011533,2]
[353194100,1739640648507,-500.0,0.00011533,2]
[353194101,1739640648518,-500.0,0.00011533,2]
[353194102,1739640648528,-500.0,0.00011533,2]
[353194103,1739640648541,-495.71,0.00011534,2]
[353194104,1739640648552,-454.41,0.00011534,2]
[353194105,1739640648562,-500.0,0.00011534,2]
[353194106,1739640648573,-171.74,0.00011534,2]
[353194107,1739640648583,-500.0,0.00011534,2]
[353194108,1739640648595,-500.0,0.00011534,2]
[353194109,1739640648605,-571.48,0.00011546,2]
[353194110,1739640648615,-512.53,0.00011546,2]
[353194111,1739640648626,-500.0,0.00011546,2]
[353194112,1739640648636,-500.0,0.00011546,2]
[353194113,1739640648646,-844.08,0.00011546,2]
[353194114,1739640648657,-678.77,0.00011546,2]
[353194115,1739640648667,-578.69,0.00011546,2]
[353194116,1739640648678,-836.8,0.00011546,2]
[353194117,1739640648688,-502.58,0.00011546,2]
[353194118,1739640648698,-430.69363401,0.00011546,2]
[353194119,1739640648709,-500.0,0.00011546,2]
[353194120,1739640648719,-830.02,0.00011546,2]
[353194121,1739640648730,-932.26,0.00011546,2]
[353194122,1739640648806,-651.91,0.00011546,2]
[353194123,1739640648817,-521.69,0.00011546,2]
[353194124,1739640648827,-500.0,0.00011546,2]
[353194125,1739640648837,-2314.63,0.00011546,2]
[353194126,1739640648847,-500.0,0.00011546,2]
[353194127,1739640648857,-500.0,0.00011546,2]
[353194128,1739640648867,-500.0,0.00011546,2]
[353194129,1739640648877,-500.0,0.00011546,2]
[353194130,1739640648888,-1694.07,0.00011546,2]
[353194131,1739640648898,-500.0,0.00011546,2]
[353194132,1739640648908,-805.43,0.00011546,2]
[353194133,1739640648918,-553.77,0.00011546,2]
[353194134,1739640648928,-432.08438454,0.00011592,2]
[353194135,1739640648938,-661.5,0.00011614,2]
[353194136,1739640648952,-522.73,0.00011614,2]
[353194137,1739640648962,-500.0,0.00011614,2]
[353194138,1739640648972,-302.33,0.00011614,2]
[353194139,1739640648982,-500.0,0.00011614,2]
[353194140,1739640648993,-500.0,0.00011614,2]
[353194141,1739640649003,-500.0,0.00011614,2]
[353194142,1739640649013,-500.0,0.00011614,2]
[353194143,1739640649024,-500.0,0.00011614,2]
[353194144,1739640649034,-500.0,0.00011614,2]
[353194145,1739640649044,-500.0,0.00011614,2]
[353194146,1739640649054,-500.0,0.00011614,2]
[353194147,1739640649064,-500.0,0.00011614,2]
[353194148,1739640649074,-500.0,0.00011614,2]
[353194149,1739640649084,-500.0,0.00011614,2]
[353194150,1739640649094,-500.0,0.00011614,2]
[353194151,1739640649104,-500.0,0.00011614,2]
[353194152,1739640649113,-500.0,0.00011614,2]
[353194153,1739640649124,-500.0,0.00011614,2]
[353194154,1739640649135,-500.0,0.00011614,2]
[353194155,1739640649146,-1073.26,0.00011614,2]
[353194156,1739640649156,-702.58,0.00011614,2]
[353194157,1739640649166,-500.0,0.00011614,2]
[353194158,1739640649178,-749.99,0.00011614,2]
[353194159,1739640649188,-500.0,0.00011614,2]
[353194160,1739640649198,-500.0,0.00011614,2]
[353194161,1739640649208,-500.0,0.00011614,2]
[353194162,1739640649218,-180.896505,0.00011614,2]
[353194163,1739640649229,-500.0,0.00011614,2]
[353194164,1739640649241,-500.0,0.00011614,2]
[353194165,1739640649251,-500.0,0.00011614,2]
[353194166,1739640649262,-557.75,0.00011614,2]
[353194167,1739640649273,-826.89,0.00011614,2]
[353194168,1739640649283,-364.085208,0.00011614,2]
[353194169,1739640649293,-500.0,0.00011614,2]
[353194170,1739640649304,-551.39,0.00011614,2]
[353194171,1739640649314,-758.76,0.00011614,2]
[353194172,1739640649324,-574.22,0.00011614,2]
[353194173,1739640649334,-500.0,0.00011614,2]
[353194174,1739640649345,-500.0,0.00011614,2]
[353194175,1739640649355,-664.12,0.00011614,2]
[353194176,1739640649364,-647.76,0.00011614,2]
[353194177,1739640649374,-500.0,0.00011614,2]
[353194178,1739640649384,-679.9,0.00011614,2]
[353194179,1739640649394,-500.0,0.00011614,2]
[353194180,1739640649405,-500.0,0.00011614,2]
[353194181,1739640649416,-500.0,0.00011614,2]
[353194182,1739640649426,-1774.1,0.00011614,2]
[353194183,1739640649436,-500.0,0.00011614,2]
[353194184,1739640649446,-500.0,0.00011614,2]
[353194185,1739640649456,-567.85,0.00011614,2]
[353194186,1739640649466,-500.0,0.00011614,2]
[353194187,1739640649475,-536.13,0.00011614,2]
[353194188,1739640649487,-500.0,0.00011614,2]
[353194189,1739640649497,-810.11,0.00011614,2]
[353194190,1739640649508,-500.0,0.00011614,2]
[353194191,1739640649518,-1032.21,0.00011614,2]
[353194192,1739640649528,-500.0,0.00011614,2]
[353194193,1739640649538,-1501.05,0.00011614,2]
[353194194,1739640649548,-500.0,0.00011614,2]
[353194195,1739640649558,-644.12,0.00011614,2]
[353194196,1739640649569,-500.0,0.00011614,2]
[353194197,1739640649579,-500.0,0.00011614,2]
[353194198,1739640649588,-701.46,0.00011614,2]
[353194199,1739640649598,-917.15,0.00011614,2]
[353194200,1739640649607,-500.0,0.00011614,2]
[353194201,1739640649617,-506.75,0.00011614,2]
[353194202,1739640649626,-845.55,0.00011614,2]
[353194203,1739640649636,-500.0,0.00011614,2]
[353194204,1739640649652,-500.0,0.00011614,2]
[353194205,1739640649662,-893.05,0.00011614,2]
[353194206,1739640649672,-500.0,0.00011614,2]
[353194207,1739640649682,-451.26,0.00011614,2]
[353194208,1739640649692,-500.0,0.00011614,2]
[353194209,1739640649702,-1077.49,0.00011614,2]
[353194210,1739640649712,-500.0,0.00011614,2]
[353194211,1739640649721,-625.32,0.00011614,2]
[353194212,1739640649733,-500.0,0.00011614,2]
[353194213,1739640649743,-500.0,0.00011614,2]
[353194214,1739640649753,-500.0,0.00011614,2]
[353194215,1739640649763,-500.0,0.00011614,2]
[353194216,1739640649772,-500.0,0.00011614,2]
[353194217,1739640649782,-833.02,0.00011614,2]
[353194218,1739640649791,-629.24,0.00011614,2]
[353194219,1739640649801,-1985.97,0.00011614,2]
[353194220,1739640649810,-385.47,0.00011614,2]
[353194221,1739640649819,-500.0,0.00011615,2]
[353194222,1739640649829,-500.0,0.00011615,2]
[353194223,1739640649839,-500.0,0.00011615,2]
[353194224,1739640649848,-500.0,0.00011615,2]
[353194225,1739640649859,-500.0,0.00011615,2]
[353194226,1739640649869,-738.52,0.00011615,2]
[353194227,1739640649879,-500.0,0.00011615,2]
[353194228,1739640649888,-500.0,0.00011615,2]
[353194229,1739640649898,-500.0,0.00011615,2]
[353194230,1739640649908,-500.0,0.00011615,2]
[353194231,1739640649918,-500.0,0.00011615,2]
[353194232,1739640649927,-500.0,0.00011616,2]
[353194233,1739640649937,-500.0,0.00011616,2]